[Event "GER-ch Blitz 2019"]
[Site "Magdeburg"]
[Date "2019.05.25"]
[Round "21.3"]
[White "Barzen, Pascal"]
[Black "Carow, Johannes"]
[Result "0-1"]
[ECO "B23"]
[WhiteElo "2292"]
[BlackElo "2445"]
[Annotator "NA"]
[PlyCount "74"]
[EventDate "2019.05.25"]
[EventType "tourn"]
[EventCountry "GER"]
[Tiebreak "Number of wins+Number of black wins"]
[SourceTitle "playchess.com"]
[Source "ChessBase"]
[SourceQuality "1"]
[TimeControl "180+2"]

1. e4 {[%emt 0:00:00]} c5 {[%emt 0:00:00]} 2. Nc3 {[%emt 0:00:00]} a6 {[%emt 0:
00:03]} 3. g3 {[%emt 0:00:00]} b5 {[%emt 0:00:00]} 4. Bg2 {[%emt 0:00:01]} Bb7
5. d3 e6 {[%emt 0:00:04]} 6. f4 {[%emt 0:00:01]} b4 {[%emt 0:00:03]} 7. Nce2 {
[%emt 0:00:03]} d5 {[%emt 0:00:01]} 8. e5 {[%emt 0:00:05]} Ne7 {[%emt 0:00:02]}
9. d4 {[%emt 0:00:01]} Nf5 {[%emt 0:00:05]} 10. Nf3 {[%emt 0:00:02]} Nc6 {
[%emt 0:00:02]} 11. c3 {[%emt 0:00:06]} a5 {[%emt 0:00:05]} 12. O-O {[%emt 0:
00:06]} h5 {[%emt 0:00:02]} 13. Re1 {[%emt 0:00:11]} Qb6 {[%emt 0:00:03]} 14.
h3 {[%emt 0:00:48]} Be7 {[%emt 0:00:24]} 15. a3 {[%emt 0:00:35]} bxa3 {[%emt 0:
00:29]} 16. bxa3 {[%emt 0:00:02]} Ba6 {[%emt 0:00:01]} 17. Kh2 {[%emt 0:00:16]}
Bxe2 {[%emt 0:00:41]} 18. Qxe2 {[%emt 0:00:22]} cxd4 {[%emt 0:00:02]} 19. cxd4
{[%emt 0:00:01]} Ncxd4 {[%emt 0:00:15]} 20. Nxd4 {[%emt 0:00:00]} Qxd4 {
[%emt 0:00:05]} 21. Qb5+ {[%emt 0:00:08]} Kf8 {[%emt 0:00:05]} 22. Rb1 {
[%emt 0:00:13]} Qc3 {[%emt 0:00:43]} 23. Be3 {[%emt 0:00:29]} Nxe3 24. Rec1
Qxa3 {[%emt 0:00:24]} 25. Rc7 {[%emt 0:00:12]} g6 {[%emt 0:00:03]} 26. Qb7 {
[%emt 0:00:04]} Re8 27. Rb3 Qa2 {[%emt 0:00:08]} 28. Rxe3 {[%emt 0:00:02]} Qf2
{[%emt 0:00:03]} 29. Rf3 {[%emt 0:00:01]} Qd2 {[%emt 0:00:00]} 30. Rc8 {
[%emt 0:00:04]} Kg7 {[%emt 0:00:02]} 31. Rc7 {[%emt 0:00:01]} Qb4 {[%emt 0:00:
04]} 32. Qa7 {[%emt 0:00:02]} Ra8 {[%emt 0:00:02]} 33. Qf2 {[%emt 0:00:04]}
Rhc8 {[%emt 0:00:00]} 34. Rxc8 {[%emt 0:00:03]} Rxc8 {[%emt 0:00:01]} 35. g4 {
[%emt 0:00:01]} hxg4 {[%emt 0:00:01]} 36. hxg4 {[%emt 0:00:00]} Rh8+ {[%emt 0:
00:01]} 37. Kg3 {[%emt 0:00:01]} Bh4+ {[%emt 0:00:01]} 0-1

[Event "GER-ch Blitz 2019"]
[Site "Magdeburg"]
[Date "2019.05.25"]
[Round "21.4"]
[White "Schulz, Karsten"]
[Black "Heistermann, Till"]
[Result "1/2-1/2"]
[ECO "A05"]
[WhiteElo "2227"]
[BlackElo "2181"]
[Annotator "NA"]
[PlyCount "96"]
[EventDate "2019.05.25"]
[EventType "tourn"]
[EventCountry "GER"]
[Tiebreak "Number of wins+Number of black wins"]
[SourceTitle "playchess.com"]
[Source "ChessBase"]
[SourceQuality "1"]
[TimeControl "180+2"]

1. Nf3 {[%emt 0:00:00]} Nf6 {[%emt 0:00:00]} 2. g3 {[%emt 0:00:00]} g6 {
[%emt 0:00:00]} 3. b3 {[%emt 0:00:01]} Bg7 {[%emt 0:00:01]} 4. Bb2 {[%emt 0:00:
00]} O-O 5. Bg2 c5 {[%emt 0:00:03]} 6. c4 {[%emt 0:00:02]} Nc6 {[%emt 0:00:02]}
7. O-O {[%emt 0:00:01]} d6 {[%emt 0:00:02]} 8. e3 {[%emt 0:00:03]} a6 {[%emt 0:
00:06]} 9. d4 {[%emt 0:00:04]} Bd7 {[%emt 0:00:05]} 10. Nc3 {[%emt 0:00:05]}
cxd4 {[%emt 0:00:09]} 11. exd4 {[%emt 0:00:04]} Rb8 {[%emt 0:00:13]} 12. a4 {
[%emt 0:00:04]} Re8 {[%emt 0:00:10]} 13. Re1 {[%emt 0:00:00]} Nb4 {[%emt 0:00:
05]} 14. Qd2 {[%emt 0:00:08]} Bf5 {[%emt 0:00:05]} 15. Nh4 {[%emt 0:00:13]} Bd7
{[%emt 0:00:25]} 16. a5 {[%emt 0:00:12]} Nc6 {[%emt 0:00:10]} 17. Nd5 {[%emt 0:
00:07]} Nxd5 {[%emt 0:00:03]} 18. Bxd5 {[%emt 0:00:05]} e6 {[%emt 0:00:03]} 19.
Bg2 {[%emt 0:00:01]} Qc7 {[%emt 0:00:14]} 20. Nf3 {[%emt 0:00:05]} Ne7 {
[%emt 0:00:03]} 21. Bc3 {[%emt 0:00:13]} Bc6 {[%emt 0:00:03]} 22. Re2 {[%emt 0:
00:22]} Nf5 {[%emt 0:00:05]} 23. Rae1 {[%emt 0:00:07]} d5 {[%emt 0:00:08]} 24.
Ne5 {[%emt 0:00:09]} Bxe5 {[%emt 0:00:06]} 25. Rxe5 {[%emt 0:00:18]} dxc4 {
[%emt 0:00:13]} 26. d5 {[%emt 0:00:02]} exd5 {[%emt 0:00:15]} 27. Rxe8+ {
[%emt 0:00:01]} Rxe8 {[%emt 0:00:00]} 28. Rxe8+ {[%emt 0:00:02]} Bxe8 {[%emt 0:
00:01]} 29. Bxd5 {[%emt 0:00:02]} cxb3 {[%emt 0:00:12]} 30. Bxb3 {[%emt 0:00:
06]} Qd6 {[%emt 0:00:27]} 31. Qe2 {[%emt 0:00:18]} Bb5 {[%emt 0:00:05]} 32. Qe1
{[%emt 0:00:06]} Nd4 {[%emt 0:00:09]} 33. Bxd4 {[%emt 0:00:25]} Qxd4 {[%emt 0:
00:01]} 34. h4 {[%emt 0:00:11]} Qf6 {[%emt 0:00:11]} 35. Bd5 {[%emt 0:00:16]}
Bc6 {[%emt 0:00:01]} 36. Bxc6 {[%emt 0:00:03]} Qxc6 {[%emt 0:00:00]} 37. Qb4 {
[%emt 0:00:02]} Kg7 {[%emt 0:00:05]} 38. Qb2+ {[%emt 0:00:02]} f6 {[%emt 0:00:
03]} 39. Qb4 {[%emt 0:00:02]} Kf7 {[%emt 0:00:02]} 40. Qb3+ {[%emt 0:00:02]}
Kg7 {[%emt 0:00:02]} 41. Qb4 {[%emt 0:00:02]} Kf7 {[%emt 0:00:06]} 42. h5 {
[%emt 0:00:00]} gxh5 {[%emt 0:00:02]} 43. Qb3+ {[%emt 0:00:02]} Kg7 {[%emt 0:
00:02]} 44. Qb4 {[%emt 0:00:01]} Qd7 {[%emt 0:00:02]} 45. Qc5 {[%emt 0:00:04]}
Qf7 {[%emt 0:00:04]} 46. Qd6 {[%emt 0:00:05]} Qg6 {[%emt 0:00:02]} 47. Qc7+ {
[%emt 0:00:04]} Qf7 {[%emt 0:00:00]} 48. Qd6 {[%emt 0:00:01]} Qg6 {[%emt 0:00:
01]} 1/2-1/2

[Event "GER-ch Blitz 2019"]
[Site "Magdeburg"]
[Date "2019.05.25"]
[Round "21.5"]
[White "Braeuning, Rudolf Wilhelm"]
[Black "Stern, Rene"]
[Result "0-1"]
[ECO "A13"]
[WhiteElo "2285"]
[BlackElo "2538"]
[Annotator "ChessBase"]
[PlyCount "48"]
[EventDate "2019.05.25"]
[EventType "tourn"]
[EventCountry "GER"]
[Tiebreak "Number of wins+Number of black wins"]
[SourceTitle "playchess.com"]
[Source "ChessBase"]
[SourceQuality "1"]
[TimeControl "180+2"]

1. c4 {[%emt 0:00:00]} e6 {[%emt 0:00:00]} 2. Nf3 {[%emt 0:00:03]} d5 {[%emt 0:
00:00]} 3. d4 {[%emt 0:00:03]} Nf6 {[%emt 0:00:01]} 4. e3 {[%emt 0:00:02]} b6 {
[%emt 0:00:07]} 5. Nc3 {[%emt 0:00:09]} Bb7 {[%emt 0:00:01]} 6. Bd3 {[%emt 0:
00:05]} Bd6 {[%emt 0:00:06]} 7. Qc2 {[%emt 0:00:10]} Nbd7 {[%emt 0:00:10]} 8.
e4 {[%emt 0:00:08]} dxc4 {[%emt 0:00:24]} 9. Bxc4 {[%emt 0:00:02]} e5 {[%emt 0:
00:00]} 10. Bg5 {[%emt 0:00:58]} h6 {[%emt 0:00:13]} 11. Bh4 {[%emt 0:00:01]}
exd4 {[%emt 0:00:01]} 12. Nxd4 {[%emt 0:00:06]} O-O {[%emt 0:00:06]} 13. O-O-O
{[%emt 0:00:08]} Qe8 {[%emt 0:00:28]} 14. Rhe1 {[%emt 0:00:19]} Qe5 {[%emt 0:
00:09]} 15. Bg3 {[%emt 0:00:23]} Qg5+ {[%emt 0:00:01]} 16. Kb1 {[%emt 0:00:02]}
Bxg3 {[%emt 0:00:08]} 17. hxg3 {[%emt 0:00:04]} a6 {[%emt 0:00:22]} 18. Nf5 {
[%emt 0:00:04]} Nc5 {[%emt 0:00:19]} 19. f4 {[%emt 0:00:13]} Qg4 {[%emt 0:00:
21]} 20. e5 {[%emt 0:00:27]} Nfe4 {[%emt 0:00:14]} 21. Nxe4 {[%emt 0:00:07]}
Bxe4 {[%emt 0:00:04]} 22. Rxe4 {[%emt 0:00:07]} Qxf5 {[%emt 0:00:02]} 23. Red4
Qxc2+ 24. Kxc2 a5 0-1

[Event "GER-ch Blitz 2019"]
[Site "Magdeburg"]
[Date "2019.05.25"]
[Round "21.6"]
[White "Hirneise, Jens"]
[Black "Voege, Tobias"]
[Result "1/2-1/2"]
[ECO "B35"]
[WhiteElo "2375"]
[BlackElo "2294"]
[Annotator "NA"]
[PlyCount "70"]
[EventDate "2019.05.25"]
[EventType "tourn"]
[EventCountry "GER"]
[Tiebreak "Number of wins+Number of black wins"]
[SourceTitle "playchess.com"]
[Source "ChessBase"]
[SourceQuality "1"]
[TimeControl "180+2"]

1. e4 {[%emt 0:00:00]} c5 {[%emt 0:00:00]} 2. Nf3 {[%emt 0:00:00]} Nc6 {
[%emt 0:00:00]} 3. d4 {[%emt 0:00:00]} cxd4 4. Nxd4 {[%emt 0:00:01]} g6 {
[%emt 0:00:00]} 5. Nc3 {[%emt 0:00:01]} Bg7 {[%emt 0:00:01]} 6. Be3 {[%emt 0:
00:01]} Nf6 {[%emt 0:00:01]} 7. Bc4 {[%emt 0:00:01]} O-O {[%emt 0:00:01]} 8.
Bb3 {[%emt 0:00:00]} d6 {[%emt 0:00:01]} 9. h3 {[%emt 0:00:08]} Nxd4 {[%emt 0:
00:12]} 10. Bxd4 {[%emt 0:00:01]} b5 {[%emt 0:00:12]} 11. O-O {[%emt 0:00:18]}
Bb7 {[%emt 0:00:15]} 12. f3 {[%emt 0:00:38]} b4 {[%emt 0:00:17]} 13. Nd5 {
[%emt 0:00:04]} Nxd5 {[%emt 0:00:09]} 14. exd5 {[%emt 0:00:07]} a5 {[%emt 0:00:
23]} 15. Bxg7 {[%emt 0:00:04]} Kxg7 {[%emt 0:00:01]} 16. Qd4+ {[%emt 0:00:01]}
Kg8 {[%emt 0:00:01]} 17. Bc4 {[%emt 0:00:08]} Qc7 {[%emt 0:00:10]} 18. Rfe1 {
[%emt 0:00:02]} Ba6 {[%emt 0:00:16]} 19. Bxa6 {[%emt 0:00:20]} Rxa6 {[%emt 0:
00:01]} 20. Re2 {[%emt 0:00:01]} Re8 {[%emt 0:00:25]} 21. Rae1 {[%emt 0:00:01]}
Ra7 {[%emt 0:00:01]} 22. h4 {[%emt 0:00:05]} Qc5 {[%emt 0:00:04]} 23. Qxc5 {
[%emt 0:00:18]} dxc5 {[%emt 0:00:01]} 24. Re5 {[%emt 0:00:04]} Rd8 {[%emt 0:00:
22]} 25. Rxe7 {[%emt 0:00:20]} Rxe7 {[%emt 0:00:03]} 26. Rxe7 {[%emt 0:00:01]}
Rxd5 {[%emt 0:00:01]} 27. Ra7 {[%emt 0:00:06]} Rd1+ {[%emt 0:00:16]} 28. Kh2 {
[%emt 0:00:04]} Rd2 {[%emt 0:00:01]} 29. Rxa5 {[%emt 0:00:08]} Rxc2 {[%emt 0:
00:01]} 30. b3 {[%emt 0:00:03]} h5 {[%emt 0:00:07]} 31. Ra4 {[%emt 0:00:31]}
Kf8 {[%emt 0:00:08]} 32. a3 {[%emt 0:00:06]} bxa3 {[%emt 0:00:10]} 33. Rxa3 {
[%emt 0:00:01]} Kg7 {[%emt 0:00:07]} 34. Ra6 {[%emt 0:00:07]} Rb2 {[%emt 0:00:
04]} 35. Rc6 {[%emt 0:00:02]} Rxb3 {[%emt 0:00:02]} 1/2-1/2

[Event "GER-ch Blitz 2019"]
[Site "Magdeburg"]
[Date "2019.05.25"]
[Round "21.7"]
[White "Feuerstack, Aljoscha"]
[Black "Frischmann, Rick"]
[Result "0-1"]
[ECO "B22"]
[WhiteElo "2441"]
[BlackElo "2320"]
[Annotator "NA"]
[PlyCount "56"]
[EventDate "2019.05.25"]
[EventType "tourn"]
[EventCountry "GER"]
[Tiebreak "Number of wins+Number of black wins"]
[SourceTitle "playchess.com"]
[Source "ChessBase"]
[SourceQuality "1"]
[TimeControl "180+2"]

1. e4 {[%emt 0:00:00]} c5 {[%emt 0:00:00]} 2. c3 {[%emt 0:00:00]} Nf6 {[%emt 0:
00:00]} 3. e5 {[%emt 0:00:01]} Nd5 {[%emt 0:00:00]} 4. Nf3 {[%emt 0:00:01]} Nc6
{[%emt 0:00:02]} 5. Bc4 {[%emt 0:00:01]} Nb6 {[%emt 0:00:00]} 6. Bb3 {[%emt 0:
00:01]} d5 {[%emt 0:00:01]} 7. exd6 {[%emt 0:00:01]} Qxd6 {[%emt 0:00:01]} 8.
O-O {[%emt 0:00:03]} Be6 {[%emt 0:00:01]} 9. Bxe6 {[%emt 0:00:02]} Qxe6 {
[%emt 0:00:01]} 10. a4 {[%emt 0:00:01]} Rd8 {[%emt 0:00:46]} 11. a5 {[%emt 0:
00:08]} Na8 {[%emt 0:00:01]} 12. a6 {[%emt 0:00:04]} b6 {[%emt 0:00:01]} 13.
Qa4 {[%emt 0:00:48]} Qd7 {[%emt 0:00:03]} 14. Na3 {[%emt 0:00:06]} e6 {[%emt 0:
00:04]} 15. Nb5 {[%emt 0:00:04]} Be7 {[%emt 0:00:11]} 16. d4 {[%emt 0:00:25]}
cxd4 {[%emt 0:00:01]} 17. Rd1 {[%emt 0:00:06]} Nc7 {[%emt 0:00:45]} 18. Nxc7+ {
[%emt 0:00:18]} Qxc7 {[%emt 0:00:00]} 19. Nxd4 {[%emt 0:00:02]} O-O {[%emt 0:
00:03]} 20. Bf4 {[%emt 0:00:31]} Qxf4 {[%emt 0:00:28]} 21. Qxc6 {[%emt 0:00:02]
} Bc5 {[%emt 0:00:06]} 22. g3 {[%emt 0:00:07]} Qg4 {[%emt 0:00:02]} 23. Qb7 {
[%emt 0:00:20]} e5 {[%emt 0:00:05]} 24. Nf3 {[%emt 0:00:06]} Rxd1+ {[%emt 0:00:
01]} 25. Rxd1 {[%emt 0:00:01]} e4 {[%emt 0:00:00]} 26. Qxa7 {[%emt 0:00:20]}
Qxf3 {[%emt 0:00:03]} 27. Rf1 {[%emt 0:00:03]} e3 {[%emt 0:00:02]} 28. h4 {
[%emt 0:00:08]} e2 {[%emt 0:00:08]} 0-1

[Event "GER-ch Blitz 2019"]
[Site "Magdeburg"]
[Date "2019.05.25"]
[Round "21.8"]
[White "Zuyev, Igor"]
[Black "Wichmann, Cliff"]
[Result "1-0"]
[ECO "C12"]
[WhiteElo "2447"]
[BlackElo "2280"]
[Annotator "NA"]
[PlyCount "55"]
[EventDate "2019.05.25"]
[EventType "tourn"]
[EventCountry "GER"]
[Tiebreak "Number of wins+Number of black wins"]
[SourceTitle "playchess.com"]
[Source "ChessBase"]
[SourceQuality "1"]
[TimeControl "180+2"]

1. e4 {[%emt 0:00:00]} e6 {[%emt 0:00:00]} 2. d4 {[%emt 0:00:00]} d5 {[%emt 0:
00:00]} 3. Nc3 {[%emt 0:00:01]} Nf6 {[%emt 0:00:01]} 4. Bg5 {[%emt 0:00:03]}
Bb4 {[%emt 0:00:01]} 5. exd5 {[%emt 0:00:11]} Qxd5 {[%emt 0:00:01]} 6. Bxf6 {
[%emt 0:00:05]} gxf6 {[%emt 0:00:02]} 7. Qd2 {[%emt 0:00:04]} Bxc3 {[%emt 0:00:
06]} 8. Qxc3 {[%emt 0:00:03]} Nc6 {[%emt 0:00:01]} 9. Nf3 {[%emt 0:00:06]} Bd7
{[%emt 0:00:05]} 10. Bc4 {[%emt 0:00:06]} Qe4+ {[%emt 0:00:02]} 11. Kf1 {
[%emt 0:00:05]} O-O-O {[%emt 0:00:10]} 12. Re1 {[%emt 0:00:04]} Qg6 {[%emt 0:
00:08]} 13. h3 {[%emt 0:00:05]} Ne7 {[%emt 0:00:07]} 14. Qa3 {[%emt 0:00:06]}
Nc6 {[%emt 0:00:23]} 15. Bd3 {[%emt 0:00:03]} Qg7 {[%emt 0:00:07]} 16. g3 {
[%emt 0:00:05]} Kb8 {[%emt 0:00:04]} 17. Kg2 {[%emt 0:00:07]} Rhe8 {[%emt 0:00:
04]} 18. c4 {[%emt 0:00:08]} Ne7 {[%emt 0:00:01]} 19. b4 {[%emt 0:00:05]} Bc6 {
[%emt 0:00:03]} 20. d5 {[%emt 0:00:06]} exd5 {[%emt 0:00:15]} 21. b5 {[%emt 0:
00:09]} dxc4 {[%emt 0:00:13]} 22. bxc6 {[%emt 0:00:06]} Nxc6 {[%emt 0:00:43]}
23. Rxe8 {[%emt 0:00:08]} Rxe8 {[%emt 0:00:01]} 24. Bxc4 {[%emt 0:00:02]} Ne5 {
[%emt 0:00:28]} 25. Nxe5 {[%emt 0:00:08]} fxe5 {[%emt 0:00:01]} 26. Rb1 {
[%emt 0:00:04]} Qg6 {[%emt 0:00:13]} 27. Qb3 {[%emt 0:00:06]} Qb6 {[%emt 0:00:
21]} 28. Qa4 {[%emt 0:00:10]} 1-0

[Event "GER-ch Blitz 2019"]
[Site "Magdeburg"]
[Date "2019.05.25"]
[Round "21.9"]
[White "Koch, Thomas"]
[Black "Stein, Robert"]
[Result "1-0"]
[ECO "D43"]
[WhiteElo "2474"]
[BlackElo "2318"]
[Annotator "ChessBase"]
[PlyCount "73"]
[EventDate "2019.05.25"]
[EventType "tourn"]
[EventCountry "GER"]
[Tiebreak "Number of wins+Number of black wins"]
[SourceTitle "playchess.com"]
[Source "ChessBase"]
[SourceQuality "1"]
[TimeControl "180+2"]

1. d4 {[%emt 0:00:00]} Nf6 {[%emt 0:00:00]} 2. c4 {[%emt 0:00:00]} e6 {[%emt 0:
00:01]} 3. Nf3 {[%emt 0:00:00]} d5 {[%emt 0:00:01]} 4. Nc3 c6 5. Bg5 {[%emt 0:
00:03]} h6 {[%emt 0:00:02]} 6. Bh4 {[%emt 0:00:03]} Be7 {[%emt 0:00:00]} 7. e3
{[%emt 0:00:01]} O-O {[%emt 0:00:02]} 8. Bd3 {[%emt 0:00:01]} Nbd7 {[%emt 0:00:
02]} 9. O-O {[%emt 0:00:02]} dxc4 {[%emt 0:00:02]} 10. Bxc4 {[%emt 0:00:00]} b5
{[%emt 0:00:01]} 11. Bd3 {[%emt 0:00:02]} a6 12. e4 {[%emt 0:00:16]} b4 {
[%emt 0:00:09]} 13. Na4 {[%emt 0:00:07]} Bb7 {[%emt 0:00:15]} 14. e5 {[%emt 0:
00:03]} Nd5 {[%emt 0:00:01]} 15. Bxe7 {[%emt 0:00:02]} Qxe7 {[%emt 0:00:01]}
16. Rc1 {[%emt 0:00:01]} Rfc8 {[%emt 0:00:05]} 17. Nc5 {[%emt 0:00:05]} Nxc5 {
[%emt 0:00:06]} 18. Rxc5 {[%emt 0:00:01]} Nb6 {[%emt 0:00:12]} 19. Be4 {
[%emt 0:00:03]} Rc7 {[%emt 0:00:12]} 20. Qe2 {[%emt 0:00:41]} Nd7 {[%emt 0:00:
14]} 21. Rc2 {[%emt 0:00:14]} c5 {[%emt 0:00:12]} 22. Rfc1 {[%emt 0:00:07]}
Bxe4 {[%emt 0:00:18]} 23. Qxe4 {[%emt 0:00:01]} Rac8 {[%emt 0:00:00]} 24. d5 {
[%emt 0:00:14]} exd5 {[%emt 0:00:02]} 25. Qxd5 {[%emt 0:00:01]} Nb6 {[%emt 0:
00:01]} 26. Qd6 {[%emt 0:00:18]} Qxd6 {[%emt 0:00:20]} 27. exd6 {[%emt 0:00:01]
} Rd7 {[%emt 0:00:02]} 28. Rxc5 {[%emt 0:00:03]} Rxc5 29. Rxc5 {[%emt 0:00:01]}
Rxd6 {[%emt 0:00:01]} 30. g3 {[%emt 0:00:02]} Rd1+ {[%emt 0:00:04]} 31. Kg2 {
[%emt 0:00:01]} Ra1 {[%emt 0:00:01]} 32. Ra5 {[%emt 0:00:05]} Nc4 {[%emt 0:00:
22]} 33. Rxa6 {[%emt 0:00:09]} b3 {[%emt 0:00:04]} 34. a3 {[%emt 0:00:27]} Nxb2
{[%emt 0:00:04]} 35. Nd2 {[%emt 0:00:01]} Nc4 {[%emt 0:00:05]} 36. Nxc4 {
[%emt 0:00:02]} Rc1 {[%emt 0:00:05]} 37. Ra4 {[%emt 0:00:08]} 1-0

[Event "GER-ch Blitz 2019"]
[Site "Magdeburg"]
[Date "2019.05.25"]
[Round "21.10"]
[White "Schmaltz, Roland"]
[Black "Baskin, Robert"]
[Result "1/2-1/2"]
[ECO "B90"]
[WhiteElo "2461"]
[BlackElo "2398"]
[Annotator "ChessBase"]
[PlyCount "84"]
[EventDate "2019.05.25"]
[EventType "tourn"]
[EventCountry "GER"]
[Tiebreak "Number of wins+Number of black wins"]
[SourceTitle "playchess.com"]
[Source "ChessBase"]
[SourceQuality "1"]
[TimeControl "180+2"]

1. e4 {[%emt 0:00:00]} c5 {[%emt 0:00:00]} 2. Nf3 {[%emt 0:00:00]} d6 {[%emt 0:
00:00]} 3. d4 {[%emt 0:00:00]} cxd4 {[%emt 0:00:00]} 4. Nxd4 {[%emt 0:00:00]}
Nf6 {[%emt 0:00:01]} 5. Nc3 {[%emt 0:00:01]} a6 {[%emt 0:00:00]} 6. Be3 {
[%emt 0:00:02]} e5 {[%emt 0:00:01]} 7. Nb3 {[%emt 0:00:01]} Be6 {[%emt 0:00:02]
} 8. f3 {[%emt 0:00:05]} h5 {[%emt 0:00:11]} 9. Qd2 {[%emt 0:00:02]} Nbd7 {
[%emt 0:00:01]} 10. a4 {[%emt 0:00:02]} Rc8 {[%emt 0:00:04]} 11. Be2 {[%emt 0:
00:01]} Be7 {[%emt 0:00:03]} 12. a5 {[%emt 0:00:01]} O-O {[%emt 0:00:14]} 13.
O-O {[%emt 0:00:01]} h4 {[%emt 0:00:05]} 14. Nd5 {[%emt 0:00:05]} Bxd5 {
[%emt 0:00:04]} 15. exd5 {[%emt 0:00:01]} Nh5 {[%emt 0:00:01]} 16. c4 {[%emt 0:
00:14]} Nf4 {[%emt 0:00:16]} 17. Bxf4 {[%emt 0:00:11]} exf4 {[%emt 0:00:01]}
18. Qxf4 {[%emt 0:00:15]} Bf6 {[%emt 0:00:21]} 19. Qd2 {[%emt 0:00:03]} Re8 {
[%emt 0:00:06]} 20. Rfe1 {[%emt 0:00:07]} Qc7 {[%emt 0:00:03]} 21. Kh1 {
[%emt 0:00:13]} Nc5 {[%emt 0:00:01]} 22. Nxc5 {[%emt 0:00:01]} Qxc5 {[%emt 0:
00:01]} 23. Bf1 {[%emt 0:00:12]} Qd4 {[%emt 0:00:33]} 24. Qxd4 Bxd4 {[%emt 0:
00:01]} 25. Rxe8+ {[%emt 0:00:13]} Rxe8 {[%emt 0:00:01]} 26. Rb1 {[%emt 0:00:
02]} Re3 {[%emt 0:00:13]} 27. b4 {[%emt 0:00:03]} Bc3 {[%emt 0:00:06]} 28. c5 {
[%emt 0:00:07]} dxc5 {[%emt 0:00:06]} 29. bxc5 {[%emt 0:00:01]} Re1 {[%emt 0:
00:01]} 30. Rxe1 {[%emt 0:00:09]} Bxe1 {[%emt 0:00:01]} 31. c6 {[%emt 0:00:25]}
bxc6 {[%emt 0:00:02]} 32. dxc6 {[%emt 0:00:01]} Bxa5 {[%emt 0:00:01]} 33. Bxa6
{[%emt 0:00:01]} Bb6 {[%emt 0:00:06]} 34. Bc4 {[%emt 0:00:01]} Kf8 {[%emt 0:00:
01]} 35. g4 {[%emt 0:00:04]} hxg3 {[%emt 0:00:02]} 36. hxg3 {[%emt 0:00:01]}
Ke7 {[%emt 0:00:01]} 37. Kg2 {[%emt 0:00:01]} f6 {[%emt 0:00:03]} 38. Bd3 {
[%emt 0:00:02]} Kd6 {[%emt 0:00:02]} 39. Be4 {[%emt 0:00:00]} Bd4 {[%emt 0:00:
02]} 40. f4 {[%emt 0:00:02]} Bc3 {[%emt 0:00:01]} 41. Kf3 {[%emt 0:00:01]} Be1
{[%emt 0:00:01]} 42. g4 {[%emt 0:00:01]} Bd2 {[%emt 0:00:01]} 1/2-1/2

[Event "GER-ch Blitz 2019"]
[Site "Magdeburg"]
[Date "2019.05.25"]
[Round "21.11"]
[White "Buhmann, Rainer"]
[Black "Kopylov, Daniel"]
[Result "1-0"]
[ECO "D35"]
[WhiteElo "2573"]
[BlackElo "2263"]
[Annotator "ChessBase"]
[PlyCount "65"]
[EventDate "2019.05.25"]
[EventType "tourn"]
[EventCountry "GER"]
[Tiebreak "Number of wins+Number of black wins"]
[SourceTitle "playchess.com"]
[Source "ChessBase"]
[SourceQuality "1"]
[TimeControl "180+2"]

1. d4 {[%emt 0:00:00]} d5 {[%emt 0:00:01]} 2. c4 {[%emt 0:00:00]} e6 {[%emt 0:
00:01]} 3. Nc3 {[%emt 0:00:02]} Nf6 {[%emt 0:00:01]} 4. cxd5 {[%emt 0:00:01]}
exd5 {[%emt 0:00:02]} 5. Bg5 {[%emt 0:00:02]} c6 {[%emt 0:00:01]} 6. e3 {
[%emt 0:00:02]} Be7 {[%emt 0:00:04]} 7. Bd3 {[%emt 0:00:01]} Nbd7 {[%emt 0:00:
02]} 8. Qc2 {[%emt 0:00:11]} g6 {[%emt 0:00:05]} 9. Nge2 {[%emt 0:00:05]} Nf8 {
[%emt 0:00:04]} 10. O-O {[%emt 0:00:10]} Ne6 {[%emt 0:00:01]} 11. Bxf6 {
[%emt 0:00:03]} Bxf6 {[%emt 0:00:02]} 12. b4 {[%emt 0:00:01]} O-O {[%emt 0:00:
55]} 13. Rab1 {[%emt 0:00:03]} a5 {[%emt 0:00:22]} 14. b5 {[%emt 0:00:03]} c5 {
[%emt 0:00:01]} 15. dxc5 {[%emt 0:00:10]} Nxc5 {[%emt 0:00:03]} 16. Rbc1 {
[%emt 0:00:28]} Nxd3 {[%emt 0:00:45]} 17. Qxd3 {[%emt 0:00:01]} Bf5 {[%emt 0:
00:25]} 18. Qxd5 {[%emt 0:00:13]} Qxd5 {[%emt 0:00:10]} 19. Nxd5 {[%emt 0:00:
02]} Bb2 {[%emt 0:00:11]} 20. Rc7 {[%emt 0:00:24]} Be6 {[%emt 0:00:02]} 21.
Nef4 {[%emt 0:00:03]} Be5 {[%emt 0:00:02]} 22. Ne7+ {[%emt 0:00:07]} Kh8 {
[%emt 0:00:02]} 23. Nxe6 {[%emt 0:00:06]} Bxc7 {[%emt 0:00:03]} 24. Nxc7 {
[%emt 0:00:01]} Rad8 {[%emt 0:00:02]} 25. Ned5 {[%emt 0:00:03]} Rd6 {[%emt 0:
00:04]} 26. f3 {[%emt 0:00:15]} Kg7 {[%emt 0:00:04]} 27. Kf2 {[%emt 0:00:01]}
Rfd8 {[%emt 0:00:03]} 28. e4 {[%emt 0:00:01]} f5 {[%emt 0:00:04]} 29. Ke3 {
[%emt 0:00:01]} fxe4 {[%emt 0:00:09]} 30. fxe4 {[%emt 0:00:02]} Rf8 {[%emt 0:
00:01]} 31. Rxf8 Kxf8 {[%emt 0:00:01]} 32. e5 {[%emt 0:00:05]} Rd7 {[%emt 0:00:
05]} 33. e6 {[%emt 0:00:01]} 1-0